fUSD/lending_fUSD_20240905
["ID","MTS","AMOUNT","RATE_DAILY","PERIOD"]
[337264082,1725555047374,-6127.26,0.00014998,2]
[337264083,1725555047385,-6127.26,0.00014998,2]
[337264084,1725555047395,-6127.26,0.00014998,2]
[337264085,1725555047405,-2302.7,0.00014998,2]
[337264086,1725555047414,-2302.7,0.00014998,2]
[337264087,1725555047424,-2302.7,0.00014998,2]
[337264088,1725555047433,-1037.86,0.00014998,2]
[337264089,1725555047443,-1037.86,0.00014998,2]
[337264090,1725555047452,-1037.86,0.00014998,2]
[337264091,1725555047461,-1037.86,0.00014998,2]
[337264092,1725555047471,-1037.86,0.00014998,2]
[337264093,1725555047480,-500.0,0.00014998,2]
[337264094,1725555047489,-263.55205314,0.00014998,2]
[337264095,1725555047499,-556.49,0.00014998,2]
[337264096,1725555047508,-2491.45,0.00014998,2]
[337264097,1725555047518,-556.49,0.00014998,2]
[337264098,1725555047527,-2491.45,0.00014998,2]
[337264099,1725555047537,-556.49,0.00014998,2]
[337264100,1725555047547,-2491.45,0.00014998,2]
[337264101,1725555047560,-2491.45,0.00014998,2]
[337264102,1725555047569,-2491.45,0.00014998,2]
[337264103,1725555047578,-548.18,0.00014998,2]
[337264104,1725555047589,-548.18,0.00014998,2]
[337264105,1725555047599,-548.18,0.00014998,2]
[337264106,1725555047608,-4516.97,0.00014998,2]
[337264107,1725555047618,-4516.97,0.00014998,2]
[337264108,1725555047628,-4516.97,0.00014998,2]
[337264109,1725555047646,-4516.97,0.00014998,2]
[337264110,1725555047656,-4516.97,0.00014998,2]
[337264111,1725555047665,-1943.95,0.00014998,2]
[337264112,1725555047674,-1943.95,0.00014998,2]
[337264113,1725555047684,-1943.95,0.00014998,2]
[337264114,1725555047693,-1545.88,0.00014998,2]
[337264115,1725555047703,-1545.88,0.00014998,2]
[337264116,1725555047712,-1545.88,0.00014998,2]
[337264117,1725555047721,-1545.88,0.00014998,2]
[337264118,1725555047731,-1545.88,0.00014998,2]
[337264119,1725555047740,-870.22,0.00014998,2]
[337264120,1725555047749,-870.22,0.00014998,2]
[337264121,1725555047759,-870.22,0.00014998,2]
[337264122,1725555047767,-870.22,0.00014998,2]
[337264123,1725555047777,-870.22,0.00014998,2]
[337264124,1725555047786,-500.0,0.00014999,2]
[337264125,1725555047795,-362.6,0.00014999,2]
[337264126,1725555047805,-544.66,0.00014999,2]
[337264127,1725555047814,-500.0,0.00014999,2]
[337264128,1725555047823,-500.0,0.00014999,2]
[337264129,1725555047833,-500.0,0.00014999,2]
[337264130,1725555047842,-236.95,0.00014999,2]
[337264131,1725555047851,-500.0,0.00014999,2]
[337264132,1725555047861,-500.0,0.00014999,2]
[337264133,1725555047870,-500.0,0.00014999,2]
[337264134,1725555047879,-257.64,0.00014999,2]
[337264135,1725555047894,-500.0,0.00014999,2]
[337264136,1725555047904,-573.97,0.00014999,2]
[337264137,1725555047913,-989.81,0.00014999,2]
[337264138,1725555047922,-989.81,0.00014999,2]
[337264139,1725555047931,-989.81,0.00014999,2]
[337264140,1725555047940,-989.81,0.00014999,2]
[337264141,1725555047950,-989.81,0.00014999,2]
[337264142,1725555047959,-989.81,0.00014999,2]
[337264143,1725555047968,-989.81,0.00014999,2]
[337264144,1725555047978,-989.81,0.00014999,2]
[337264145,1725555047987,-989.81,0.00014999,2]
[337264146,1725555047996,-989.81,0.00014999,2]
[337264147,1725555048006,-989.81,0.00014999,2]
[337264148,1725555048015,-989.81,0.00014999,2]
[337264149,1725555048024,-989.81,0.00014999,2]
[337264150,1725555048033,-989.81,0.00014999,2]
[337264151,1725555048043,-989.81,0.00014999,2]
[337264152,1725555048052,-500.0,0.00014999,2]
[337264153,1725555048062,-500.0,0.00014999,2]
[337264154,1725555048071,-500.0,0.00014999,2]
[337264155,1725555048081,-191.44,0.00014999,2]
[337264156,1725555048090,-4107.88,0.00014999,2]
[337264157,1725555048100,-4107.88,0.00014999,2]
[337264158,1725555048110,-4107.88,0.00014999,2]
[337264159,1725555048120,-4107.88,0.00014999,2]
[337264160,1725555048129,-4107.88,0.00014999,2]
[337264161,1725555048142,-4107.88,0.00014999,2]
[337264162,1725555048151,-4107.88,0.00014999,2]
[337264163,1725555048160,-4107.88,0.00014999,2]
[337264164,1725555048170,-4107.88,0.00014999,2]
[337264165,1725555048179,-4107.88,0.00014999,2]
[337264166,1725555048188,-4107.88,0.00014999,2]
[337264167,1725555048198,-4107.88,0.00014999,2]
[337264168,1725555048207,-4108.01679676,0.00014999,2]
[337264169,1725555048217,-953.4,0.00014999,2]
[337264170,1725555048227,-953.4,0.00014999,2]
[337264171,1725555048236,-953.4,0.00014999,2]
[337264172,1725555048245,-953.4,0.00014999,2]
[337264173,1725555048255,-953.4,0.00014999,2]
[337264174,1725555048264,-953.4,0.00014999,2]
[337264175,1725555048273,-953.4,0.00014999,2]
[337264176,1725555048283,-953.4,0.00014999,2]
[337264177,1725555048292,-953.4,0.00014999,2]
[337264178,1725555048301,-953.4,0.00014999,2]
[337264179,1725555048310,-953.4,0.00014999,2]
[337264180,1725555048320,-953.4,0.00014999,2]
[337264181,1725555048330,-953.4,0.00014999,2]
[337264182,1725555048339,-953.6,0.00014999,2]
[337264183,1725555048348,-500.0,0.00014999,2]
[337264184,1725555048357,-500.0,0.00014999,2]
[337264185,1725555048367,-500.0,0.00014999,2]
[337264186,1725555048376,-500.0,0.00014999,2]
[337264187,1725555048389,-270.29,0.00014999,2]
[337264188,1725555048398,-500.0,0.00014999,2]
[337264189,1725555048407,-500.0,0.00014999,2]
[337264190,1725555048416,-500.0,0.00014999,2]
[337264191,1725555048425,-500.0,0.00014999,2]
[337264192,1725555048434,-500.0,0.00014999,2]
[337264193,1725555048444,-500.0,0.00014999,2]
[337264194,1725555048454,-500.0,0.00014999,2]
[337264195,1725555048463,-500.0,0.00014999,2]
[337264196,1725555048472,-500.0,0.00014999,2]
[337264197,1725555048482,-500.0,0.00014999,2]
[337264198,1725555048491,-500.0,0.00014999,2]
[337264199,1725555048500,-625.62,0.00014999,2]
[337264200,1725555048510,-619.24,0.00014999,2]
[337264201,1725555048519,-500.0,0.00014999,2]
[337264202,1725555048528,-500.0,0.00014999,2]
[337264203,1725555048539,-3940.89,0.00014999,2]
[337264204,1725555048551,-500.0,0.00014999,2]
[337264205,1725555048561,-3940.89,0.00014999,2]
[337264206,1725555048570,-500.0,0.00014999,2]
[337264207,1725555048580,-3940.89,0.00014999,2]
[337264208,1725555048590,-439.58,0.00014999,2]
[337264209,1725555048599,-3940.89,0.00014999,2]
[337264210,1725555048608,-3940.89,0.00014999,2]
[337264211,1725555048618,-3940.89,0.00014999,2]
[337264212,1725555048628,-500.0,0.00014999,2]
[337264213,1725555048640,-3940.89,0.00014999,2]
[337264214,1725555048649,-155.52,0.00014999,2]
[337264215,1725555048659,-3940.89,0.00014999,2]
[337264216,1725555048668,-3940.89,0.00014999,2]
[337264217,1725555048677,-3940.89,0.00014999,2]
[337264218,1725555048686,-3940.89,0.00014999,2]
[337264219,1725555048695,-3940.89,0.00014999,2]
[337264220,1725555048704,-3941.04,0.00014999,2]
[337264221,1725555048714,-5459.23,0.00014999,2]
[337264222,1725555048723,-5459.23,0.00014999,2]
[337264223,1725555048732,-1089.79,0.00014999,2]
[337264224,1725555048742,-5459.23,0.00014999,2]
[337264225,1725555048751,-1089.79,0.00014999,2]
[337264226,1725555048760,-1089.79,0.00014999,2]
[337264227,1725555048769,-225.30252327,0.00014999,2]
[337264228,1725555048792,-462.45588772,0.00014999,2]
[337264229,1725555048803,-264.54053448,0.00014999,2]
[337264230,1725555048814,-4506.93105453,0.00014999,2]
[337264231,1725555048823,-1089.79,0.00014999,2]
[337264232,1725555048832,-873.48727844,0.00014999,2]
[337264233,1725555048847,-972.98539571,0.00014999,2]
[337264234,1725555048858,-315.94706267,0.00014999,2]
[337264235,1725555049009,-282.49345568,0.00014999,2]
[337264236,1725555049021,-564.187865,0.00014999,2]
[337264237,1725555049032,-1047.52,0.00014999,2]
[337264238,1725555049135,-1402.6089425,0.00014999,2]
[337264239,1725555049144,-1089.79,0.00014999,2]
[337264240,1725555049154,-5459.23,0.00014999,2]
[337264241,1725555049163,-1089.79,0.00014999,2]
[337264242,1725555049172,-5459.23,0.00014999,2]
[337264243,1725555049182,-127.28311795,0.00014999,2]
[337264244,1725555049193,-962.50688205,0.00014999,2]
[337264245,1725555049203,-1089.79,0.00014999,2]
[337264246,1725555049212,-2012.93744072,0.00014999,2]
[337264247,1725555049350,-494.62190275,0.00014999,2]
[337264248,1725555049514,-1543.33783597,0.00014999,2]
[337264249,1725555049526,-1277.92699543,0.00014999,2]
[337264250,1725555049539,-130.40582513,0.00014999,2]
[337264251,1725555049551,-140.8541744,0.00014999,2]
[337264252,1725555049563,-948.9358256,0.00014999,2]
[337264253,1725555049572,-651.19457795,0.00014999,2]
[337264254,1725555096573,157.87,0.00010959,2]
[337264255,1725555256889,358.7640813,0.00027,120]
[337264257,1725555402176,626.17684901,0.00011474,2]
[337264258,1725555402203,715.17315099,0.00011474,2]
[337264261,1725555558026,400.0,0.00027,120]
[337264262,1725555694661,-164.75,0.00013409,2]
[337264263,1725555694683,-9835.25,0.00013456,2]
[337264264,1725555695718,-10000.0,0.00013456,2]
[337264265,1725555796500,550.0,0.00011,2]
[337264266,1725555797574,600.0,0.00013,2]
[337264267,1725555895322,1274.28,0.00011602,2]
[337264268,1725555896309,-150.0,0.0001339,2]
[337264269,1725555896330,-250.0,0.00013458,2]
[337264270,1725555896350,-250.0,0.00013462,2]
[337264271,1725555896370,-1522.94,0.00013481,2]
[337264272,1725555896390,-150.39,0.00013481,2]
[337264273,1725555896410,-8696.67,0.000135,2]
[337264274,1725556001138,-13707.0,0.000135,2]
[337264276,1725556126719,-1496.33,0.000135,2]
[337264277,1725556126749,-1457.1725688,0.00013509,2]
[337264285,1725556231540,-497.48514,0.00013399,2]
[337264286,1725556231552,-6677.60913004,0.00013399,2]
[337264287,1725556231563,-275.90564,0.00013399,2]
[337264288,1725556231597,-475.36648996,0.00013399,2]
[337264289,1725556231609,-42.8274312,0.00013509,2]
[337264290,1725556231618,-174.05,0.00013546,2]
[337264291,1725556231628,-7.75607884,0.00013557,2]
[337264292,1725556231654,-1609.84392116,0.00013557,2]
[337264293,1725556231664,-2000.0,0.00013561,2]
[337264294,1725556231672,-1272.48,0.00013562,2]
[337264295,1725556231681,-360.96779972,0.00013564,2]
[337264296,1725556231693,-639.03220028,0.00013564,2]
[337264297,1725556231702,-300.71,0.00013589,2]
[337264298,1725556231712,-597.96,0.0001369,2]
[337264299,1725556231721,-1274.28,0.00013866,2]
[337264300,1725556231732,-155.49,0.00013932,2]
[337264301,1725556231741,-155.49,0.00013938,2]
[337264302,1725556231751,-155.49,0.00013944,2]
[337264303,1725556231762,-388.06,0.00013944,2]
[337264304,1725556231771,-155.49,0.00013949,2]
[337264305,1725556231781,-155.49,0.00013955,2]
[337264306,1725556231792,-155.49,0.00013961,2]
[337264307,1725556231807,-155.49,0.00013967,2]
[337264308,1725556231818,-155.49,0.00013973,2]
[337264309,1725556231827,-155.49,0.00013979,2]
[337264310,1725556231836,-155.49,0.00013984,2]
[337264311,1725556231846,-155.49,0.0001399,2]
[337264312,1725556231855,-155.49,0.00013996,2]
[337264313,1725556231864,-155.49,0.00014002,2]
[337264314,1725556231873,-3791.5065,0.00014597,2]
[337264315,1725556231882,-355.0,0.00014697,2]
[337264316,1725556231892,-11189.60070311,0.00014697,2]
[337264317,1725556231908,-3291.72950663,0.00014697,2]
[337264327,1725556237608,-2303.0117954,0.00014697,2]
[337264328,1725556237806,-1138.0,0.00014697,2]
[337264374,1725556239621,-1686.30297754,0.00014697,2]
[337264375,1725556239633,-787.95730986,0.00014697,2]
[337264376,1725556239645,-518.424,0.00014697,2]
[337264377,1725556239885,-9.56627755,0.00014697,2]
[337264378,1725556239952,-250.0,0.00013924,2]
[337264379,1725556239962,-12909.40282991,0.00014697,2]
[337264380,1725556239971,-20357.9603,0.00014697,2]
[337264381,1725556239980,-24849.179,0.00014697,2]
[337264382,1725556239990,-1428.2992,0.00014697,2]
[337264383,1725556239999,-150.0,0.00014697,2]
[337264384,1725556240008,-150.0,0.000147,2]
[337264385,1725556240017,-42706.0,0.000147,2]
[337264386,1725556240027,-827.9067,0.00014749,2]
[337264387,1725556240037,-158.55953446,0.0001475,2]
[337264388,1725556240047,-158.55953445,0.0001478,2]
[337264389,1725556240056,-246.839004,0.00014795,2]
[337264391,1725556240066,-500.0,0.00014809,2]
[337264392,1725556240075,-500.0,0.00014809,2]
[337264394,1725556240085,-500.0,0.00014809,2]
[337264396,1725556240094,-500.0,0.00014809,2]
[337264398,1725556240103,-500.0,0.00014809,2]
[337264399,1725556240112,-158.55953445,0.0001481,2]
[337264400,1725556240121,-158.55953445,0.0001484,2]
[337264401,1725556240130,-2915.86916,0.0001486,2]
[337264402,1725556240139,-158.55953445,0.0001487,2]
[337264403,1725556240148,-381.28,0.00014884,3]
[337264404,1725556240158,-155.51635946,0.00014889,2]
[337264405,1725556240168,-155.5163594,0.00014891,2]
[337264406,1725556240177,-155.5163594,0.00014892,2]
[337264407,1725556240186,-155.5163594,0.00014894,2]
[337264408,1725556240196,-500.0,0.00014895,2]
[337264409,1725556240205,-500.0,0.00014895,2]
[337264410,1725556240214,-1212.9,0.00014895,2]
[337264411,1725556240223,-500.0,0.00014895,2]
[337264412,1725556240233,-500.0,0.00014895,2]
[337264413,1725556240243,-500.0,0.00014895,2]
[337264414,1725556240252,-552.06,0.00014895,2]
[337264415,1725556240261,-500.0,0.00014895,2]
[337264416,1725556240271,-500.0,0.00014895,2]
[337264417,1725556240280,-6585.76,0.00014895,2]
[337264418,1725556240289,-1875.55,0.00014895,2]
[337264419,1725556240298,-500.0,0.00014895,2]
[337264420,1725556240307,-500.0,0.00014895,2]
[337264421,1725556240316,-820.98,0.00014895,2]
[337264422,1725556240325,-1202.11,0.00014895,2]
[337264423,1725556240334,-987.25,0.00014895,2]
[337264424,1725556240343,-500.0,0.00014895,2]
[337264425,1725556240352,-500.0,0.00014895,2]
[337264426,1725556240361,-500.0,0.00014895,2]
[337264427,1725556240371,-944.38,0.00014895,2]
[337264428,1725556240381,-601.28696306,0.00014895,2]
[337264429,1725556240391,-544.35,0.00014895,2]
[337264430,1725556240401,-500.0,0.00014895,2]
[337264431,1725556240411,-1098.2,0.00014895,2]
[337264432,1725556240420,-500.0,0.00014895,2]
[337264433,1725556240429,-500.0,0.00014895,2]
[337264434,1725556240438,-500.0,0.00014895,2]
[337264435,1725556240447,-500.0,0.00014895,2]
[337264436,1725556240456,-155.5163594,0.00014895,2]
[337264437,1725556240466,-155.5163594,0.00014897,2]
[337264438,1725556240477,-500.0,0.00014897,2]
[337264439,1725556240488,-500.0,0.00014897,2]
[337264440,1725556240498,-500.0,0.00014897,2]
[337264441,1725556240508,-500.0,0.00014897,2]
[337264442,1725556240517,-868.56,0.00014897,2]
[337264443,1725556240526,-500.0,0.00014897,2]
[337264444,1725556240537,-500.0,0.00014897,2]
[337264445,1725556240547,-500.0,0.00014897,2]
[337264446,1725556240556,-500.0,0.00014897,2]
[337264447,1725556240565,-500.0,0.00014897,2]
[337264448,1725556240574,-500.0,0.00014897,2]
[337264449,1725556240583,-500.0,0.00014897,2]
[337264450,1725556240593,-500.0,0.00014897,2]
[337264451,1725556240603,-500.0,0.00014897,2]
[337264452,1725556240613,-570.35967361,0.00014897,2]
[337264453,1725556240622,-500.0,0.00014897,2]
[337264454,1725556240632,-500.0,0.00014897,2]
[337264455,1725556240643,-500.0,0.00014897,2]
[337264456,1725556240654,-500.0,0.00014897,2]
[337264457,1725556240663,-500.0,0.00014897,2]
[337264458,1725556240672,-500.0,0.00014897,2]
[337264459,1725556240681,-500.0,0.00014897,2]
[337264460,1725556240690,-500.0,0.00014897,2]
[337264461,1725556240699,-500.0,0.00014897,2]
[337264462,1725556240709,-500.0,0.00014897,2]
[337264463,1725556240718,-500.0,0.00014897,2]
[337264464,1725556240727,-500.0,0.00014897,2]
[337264465,1725556240737,-500.0,0.00014897,2]
[337264466,1725556240746,-500.0,0.00014897,2]
[337264467,1725556240755,-500.0,0.00014897,2]
[337264468,1725556240766,-500.0,0.00014897,2]
[337264469,1725556240775,-500.0,0.00014897,2]
[337264470,1725556240785,-500.0,0.00014897,2]
[337264471,1725556240795,-500.0,0.00014897,2]
[337264472,1725556240807,-500.0,0.00014897,2]
[337264473,1725556240816,-500.0,0.00014897,2]
[337264474,1725556240826,-500.0,0.00014897,2]
[337264475,1725556240834,-246.03088461,0.00014897,2]
[337264476,1725556240843,-500.0,0.00014897,2]
[337264477,1725556240852,-500.0,0.00014897,2]
[337264478,1725556240862,-500.0,0.00014897,2]
[337264479,1725556240871,-500.0,0.00014897,2]
[337264480,1725556240880,-559.07,0.00014897,2]
[337264481,1725556240890,-500.0,0.00014897,2]
[337264482,1725556240898,-500.0,0.00014897,2]
[337264483,1725556240907,-1248.57,0.00014897,2]
[337264484,1725556240917,-859.03,0.00014897,2]
[337264485,1725556240925,-500.0,0.00014897,2]
[337264486,1725556240935,-540.55,0.00014897,2]
[337264487,1725556240946,-1245.73,0.00014897,2]
[337264488,1725556240955,-772.94,0.00014897,2]
[337264489,1725556240964,-2258.48,0.00014897,2]
[337264490,1725556240973,-335.0,0.00014898,2]
[337264491,1725556240983,-602.2,0.00014898,2]
[337264492,1725556240993,-500.0,0.00014898,2]
[337264493,1725556241002,-451.79311581,0.00014898,2]
[337264494,1725556241012,-500.0,0.00014898,2]
[337264495,1725556241022,-500.0,0.00014898,2]
[337264496,1725556241032,-500.0,0.00014898,2]
[337264497,1725556241042,-1261.04,0.00014898,2]
[337264498,1725556241052,-500.0,0.00014898,2]
[337264499,1725556241061,-818.18,0.00014898,2]
[337264500,1725556241071,-155.5163594,0.00014898,2]
[337264501,1725556241080,-2243.76924577,0.00014899,2]
[337264502,1725556241090,-155.5163594,0.000149,2]
[337264503,1725556241099,-158.55953445,0.000149,2]
[337264504,1725556241108,-998.0554745,0.000149,2]
[337264505,1725556241117,-2915.86915,0.0001493,2]
[337264506,1725556241126,-2539.8909366,0.00014985,3]
[337264507,1725556241135,-567.086,0.00014986,2]
[337264508,1725556241144,-500.0,0.00014986,2]
[337264509,1725556241153,-500.0,0.00014986,2]
[337264510,1725556241163,-6349.7273415,0.00014987,3]
[337264511,1725556241172,-574.65,0.00014987,2]
[337264512,1725556241181,-1667.23,0.00014987,2]
[337264513,1725556241190,-518.53,0.00014987,2]
[337264514,1725556241200,-500.0,0.00014987,2]
[337264515,1725556241209,-500.0,0.00014987,2]
[337264516,1725556241218,-1448.38,0.00014987,2]
[337264517,1725556241227,-2926.21,0.00014987,2]
[337264518,1725556241236,-500.0,0.00014987,2]
[337264519,1725556241245,-527.44,0.00014987,2]
[337264520,1725556241255,-1204.42,0.00014987,2]
[337264521,1725556241264,-3318.93,0.00014987,2]
[337264522,1725556241273,-1242.49,0.00014987,2]
[337264523,1725556241282,-1247.3,0.00014987,2]
[337264524,1725556241291,-500.0,0.00014987,2]
[337264525,1725556241301,-1052.97,0.00014987,2]
[337264526,1725556241310,-1181.53,0.00014987,2]
[337264527,1725556241319,-500.0,0.00014987,2]
[337264528,1725556241328,-500.0,0.00014987,2]
[337264529,1725556241338,-1497.68,0.00014987,2]
[337264530,1725556241348,-1621.067,0.00014988,2]
[337264531,1725556241358,-20319.1274928,0.00014988,3]
[337264532,1725556241367,-296.85968181,0.00014989,2]
[337264533,1725556241380,-500.0,0.00014994,2]
[337264534,1725556241390,-500.0,0.00014994,2]
[337264535,1725556241399,-1212.9,0.00014994,2]
[337264536,1725556241409,-500.0,0.00014994,2]
[337264537,1725556241419,-641.43,0.00014994,2]
[337264538,1725556241428,-552.06,0.00014994,2]
[337264539,1725556241437,-500.0,0.00014994,2]
[337264540,1725556241448,-6585.76,0.00014994,2]
[337264541,1725556241458,-1875.55,0.00014994,2]
[337264542,1725556241467,-500.0,0.00014994,2]
[337264543,1725556241477,-820.98,0.00014994,2]
[337264544,1725556241487,-1202.11,0.00014994,2]
[337264545,1725556241498,-987.25,0.00014994,2]
[337264546,1725556241508,-17768.1480843,0.00014994,2]
[337264547,1725556241517,-500.0,0.00014994,2]
[337264548,1725556241527,-264.1,0.00014994,2]
[337264549,1725556241537,-500.0,0.00014994,2]
[337264550,1725556241546,-944.38,0.00014994,2]
[337264551,1725556241556,-2047.4197524,0.00014994,2]
[337264552,1725556241565,-544.35,0.00014994,2]
[337264553,1725556241574,-500.0,0.00014994,2]
[337264554,1725556241584,-1098.2,0.00014994,2]
[337264555,1725556241593,-519.0,0.00014994,2]
[337264556,1725556241602,-500.0,0.00014994,2]
[337264557,1725556241611,-1479.1323987,0.00014994,2]
[337264558,1725556241620,-500.0,0.00014994,2]
[337264559,1725556241630,-500.0,0.00014994,2]
[337264560,1725556241639,-500.0,0.00014995,2]
[337264561,1725556241648,-868.56,0.00014995,2]
[337264562,1725556241658,-500.0,0.00014995,2]
[337264563,1725556241667,-500.0,0.00014995,2]
[337264564,1725556241677,-313.01,0.00014995,2]
[337264565,1725556241687,-295.62,0.00014995,2]
[337264566,1725556241697,-500.0,0.00014995,2]
[337264567,1725556241706,-386.99,0.00014995,2]
[337264568,1725556241716,-346.94,0.00014995,2]
[337264569,1725556241727,-500.0,0.00014995,2]
[337264570,1725556241737,-500.0,0.00014995,2]
[337264571,1725556241748,-309.92,0.00014995,2]
[337264572,1725556241759,-500.0,0.00014995,2]
[337264573,1725556241769,-500.0,0.00014995,2]
[337264574,1725556241779,-500.0,0.00014995,2]
[337264575,1725556241789,-574.79,0.00014995,2]
[337264576,1725556241800,-212.85,0.00014995,2]
[337264577,1725556241809,-533.61,0.00014995,2]
[337264578,1725556241818,-500.0,0.00014995,2]
[337264579,1725556241829,-419.69,0.00014995,2]
[337264580,1725556241839,-500.0,0.00014995,2]
[337264581,1725556241849,-249.99,0.00014995,2]
[337264582,1725556241859,-500.0,0.00014995,2]
[337264583,1725556241868,-500.0,0.00014995,2]
[337264584,1725556241877,-500.0,0.00014995,2]
[337264585,1725556241886,-1261.04,0.00014995,2]
[337264586,1725556241895,-522.0,0.00014995,2]
[337264587,1725556241905,-500.0,0.00014995,2]
[337264588,1725556241914,-500.0,0.00014995,2]
[337264589,1725556241923,-859.03,0.00014995,2]
[337264590,1725556241932,-818.18,0.00014995,2]
[337264591,1725556242114,-500.0,0.00014995,2]
[337264592,1725556242124,-500.0,0.00014997,2]
[337264593,1725556242134,-500.0,0.00014997,2]
[337264594,1725556242143,-1212.9,0.00014997,2]
[337264595,1725556242152,-500.0,0.00014997,2]
[337264596,1725556242161,-1667.23,0.00014997,2]
[337264597,1725556242171,-518.53,0.00014997,2]
[337264598,1725556242180,-500.0,0.00014997,2]
[337264599,1725556242189,-500.0,0.00014997,2]
[337264600,1725556242198,-552.06,0.00014997,2]
[337264601,1725556242208,-500.0,0.00014997,2]
[337264602,1725556242217,-1448.38,0.00014997,2]
[337264603,1725556242226,-2926.21,0.00014997,2]
[337264604,1725556242235,-500.0,0.00014997,2]
[337264605,1725556242244,-6585.76,0.00014997,2]
[337264606,1725556242253,-1875.55,0.00014997,2]
[337264607,1725556242263,-527.44,0.00014997,2]
[337264608,1725556242272,-1248.57,0.00014997,2]
[337264609,1725556242281,-500.0,0.00014997,2]
[337264610,1725556242290,-1204.42,0.00014997,2]
[337264611,1725556242300,-820.98,0.00014997,2]
[337264612,1725556242308,-3318.93,0.00014997,2]
[337264613,1725556242317,-1242.49,0.00014997,2]
[337264614,1725556242326,-1202.11,0.00014997,2]
[337264615,1725556242336,-987.25,0.00014997,2]
[337264616,1725556242345,-1247.3,0.00014997,2]
[337264617,1725556242354,-500.0,0.00014997,2]
[337264618,1725556242363,-500.0,0.00014997,2]
[337264620,1725556242372,-944.38,0.00014997,2]
[337264622,1725556242381,-540.55,0.00014997,2]
[337264624,1725556242390,-500.0,0.00014997,2]
[337264626,1725556242399,-544.35,0.00014997,2]
[337264628,1725556242408,-1245.73,0.00014997,2]
[337264630,1725556242417,-500.0,0.00014997,2]
[337264631,1725556242426,-1098.2,0.00014997,2]
[337264633,1725556242435,-1052.97,0.00014997,2]
[337264634,1725556242444,-772.94,0.00014997,2]
[337264635,1725556242453,-39.00074097,0.00014997,2]
[337264654,1725556242600,-54.38031392,0.00014986,2]
[337264660,1725556242643,-445.61968608,0.00014986,2]
[337264662,1725556242652,-500.0,0.00014986,2]
[337264664,1725556242662,-2219.47925903,0.00014997,2]
[337264666,1725556242671,-1181.53,0.00014997,2]
[337264668,1725556242679,-500.0,0.00014997,2]
[337264670,1725556242688,-500.0,0.00014997,2]
[337264671,1725556242698,-500.0,0.00014997,2]
[337264672,1725556242707,-500.0,0.00014997,2]
[337264673,1725556242716,-500.0,0.00014997,2]
[337264674,1725556242725,-1497.68,0.00014997,2]
[337264675,1725556242734,-500.0,0.00014997,2]
[337264676,1725556242744,-500.0,0.00014997,2]
[337264677,1725556242754,-500.0,0.00014997,2]
[337264678,1725556242763,-500.0,0.00014998,2]
[337264679,1725556242773,-167.32,0.00014998,2]
[337264680,1725556242781,-500.0,0.00014998,2]
[337264681,1725556242791,-209.93,0.00014998,2]
[337264682,1725556242800,-297.5,0.00014998,2]
[337264683,1725556242809,-1212.9,0.00014998,2]
[337264685,1725556242819,-1212.9,0.00014998,2]
[337264686,1725556242829,-1212.9,0.00014998,2]